[Event "WALTON BAN-chT 2019"]
[Site "Bangladesh"]
[Date "2019.12.17"]
[Round "11.12"]
[White "Yasin, Arafat"]
[Black "Anata, Choudhury"]
[Result "*"]
[ECO "E17"]
[WhiteElo "1879"]
[BlackElo "2137"]
[Annotator "ChessBase"]
[PlyCount "126"]
[EventDate "2019.12.07"]
[EventType "team-tourn"]
[EventCountry "BAN"]
[SourceTitle "playchess.com"]
[Source "ChessBase"]
[SourceQuality "1"]
[TimeControl "5400+30"]

1. Nf3 {[%emt 1:30:30]} Nf6 {[%emt 1:30:30]} 2. c4 {[%emt 0:00:30]} e6 {[%emt 0:00:30]} 3. g3 {[%emt 0:00:30]} b6 {[%emt 0:00:30]} 4. Bg2 {[%emt 0:00:30]} Bb7 {[%emt 0:00:30]} 5. O-O {[%emt 0:00:30]} Be7 {[%emt 0:00:30]} 6. Nc3 {[%emt 0:00:30]} O-O {[%emt 0:00:30]} 7. Re1 {[%emt 0:00:30]} d5 {[%emt 0:00:30]} 8. cxd5 {[%emt 0:00:30]} exd5 {[%emt 0:00:30]} 9. d4 {[%emt 0:00:30]} c5 {[%emt 0:00:30]} 10. Bf4 {[%emt 0:00:30]} Nc6 {[%emt 0:00:30]} 11. dxc5 {[%emt 0:00:30]} bxc5 {[%emt 0:00:30]} 12. Ne5 {[%emt 0:00:30]} Bd6 {[%emt 0:00:30]} 13. Nxc6 {[%emt 0:00:30]} Bxc6 {[%emt 0:00:30]} 14. Bg5 {[%emt 0:00:30]} Be5 {[%emt 0:00:30]} 15. Rc1 {[%emt 0:00:30]} Rc8 {[%emt 0:00:30]} 16. b3 {[%emt 0:00:30]} d4 {[%emt 0:00:30]} 17. Ne4 {[%emt 0:00:30]} Bxe4 {[%emt 0:00:30]} 18. Bxe4 {[%emt 0:00:30]} h6 {[%emt 0:00:30]} 19. Bxf6 {[%emt 0:00:30]} Bxf6 {[%emt 0:00:30]} 20. Rc4 {[%emt 0:00:30]} Re8 {[%emt 0:00:30]} 21. Qc2 {[%emt 0:00:30]} Qe7 {[%emt 0:00:30]} 22. Bf5 {[%emt 0:00:30]} Rc7 {[%emt 0:00:30]} 23. b4 {[%emt 0:00:30]} g6 {[%emt 0:00:30]} 24. Bd3 {[%emt 0:00:30]} Rec8 {[%emt 0:00:30]} 25. Rc1 {[%emt 0:00:30]} Bg5 {[%emt 0:00:30]} 26. f4 {[%emt 0:00:30]} Qe3+ {[%emt 0:00:30]} 27. Kg2 {[%emt 0:00:30]} Be7 {[%emt 0:00:30]} 28. Rf1 {[%emt 0:00:30]} f5 {[%emt 0:00:30]} 29. bxc5 {[%emt 0:00:30]} Bxc5 {[%emt 0:00:30]} 30. Rb1 {[%emt 0:00:30]} Qe7 {[%emt 0:00:30]} 31. Rb5 {[%emt 0:00:30]} Qd6 {[%emt 0:00:30]} 32. Qb1 {[%emt 0:00:30]} Kg7 {[%emt 0:00:30]} 33. h4 {[%emt 0:00:30]} h5 {[%emt 0:00:30]} 34. Kf2 {[%emt 0:00:30]} Qe7 {[%emt 0:00:30]} 35. a4 {[%emt 0:00:30]} Bd6 {[%emt 0:00:30]} 36. Rxc7 {[%emt 0:00:30]} Rxc7 {[%emt 0:00:30]} 37. Kg2 {[%emt 0:00:30]} Qe3 {[%emt 0:00:30]} 38. Rb7 {[%emt 0:00:30]} Qe7 {[%emt 0:00:30]} 39. Rxc7 {[%emt 0:00:30]} Qxc7 {[%emt 0:00:30]} 40. Qb5 {[%emt 0:00:30]} Bc5 {[%emt 0:00:30]} 41. Qe8 {[%emt 0:00:30]} Qe7 {[%emt 0:00:30]} 42. Qc8 {[%emt 0:00:30]} Qf8 {[%emt 0:00:30]} 43. Qb7+ {[%emt 0:00:30]} Qe7 {[%emt 0:00:30]} 44. Qa8 {[%emt 0:00:30]} Qf8 {[%emt 0:00:30]} 45. Qf3 {[%emt 0:00:30]} Qe7 {[%emt 0:00:30]} 46. a5 {[%emt 0:00:30]} Qc7 {[%emt 0:00:30]} 47. a6 {[%emt 0:00:30]} Bb6 {[%emt 0:00:30]} 48. Qd5 {[%emt 0:00:30]} Qd8 {[%emt 0:00:30]} 49. Qe6 {[%emt 0:00:30]} Qf6 {[%emt 0:00:30]} 50. Qd7+ {[%emt 0:00:30]} Qf7 {[%emt 0:00:30]} 51. Qb5 {[%emt 0:00:30]} Qe7 {[%emt 0:00:30]} 52. Qd5 {[%emt 0:00:30]} Qf7 {[%emt 0:00:30]} 53. Qb7 {[%emt 0:00:30]} Qxb7+ {[%emt 0:00:30]} 54. axb7 {[%emt 0:00:30]} Bc7 {[%emt 0:00:30]} 55. Ba6 {[%emt 0:00:30]} Kf6 {[%emt 0:00:30]} 56. Kf2 {[%emt 0:00:30]} Ke6 {[%emt 0:00:30]} 57. Bb5 {[%emt 0:00:30]} a5 {[%emt 0:00:30]} 58. Be8 {[%emt 0:00:30]} Kf6 {[%emt 0:00:30]} 59. Ke1 {[%emt 0:00:30]} Bb8 {[%emt 0:00:30]} 60. Kd2 {[%emt 0:00:30]} Kg7 {[%emt 0:00:30]} 61. Kd3 {[%emt 0:00:30]} Ba7 {[%emt 0:00:30]} 62. Kc4 {[%emt 0:00:30]} g5 {[%emt 0:00:30]} 63. hxg5 {[%emt 0:00:30]} h4 {[%emt 0:00:30]} *